fUSD/lending_fUSD_20260202
["ID","MTS","AMOUNT","RATE_DAILY","PERIOD"]
[404353929,1770072650212,-1119.06497101,0.00016438,2]
[404353930,1770072650221,-1119.06497101,0.00016438,2]
[404353931,1770072650230,-1119.06497101,0.00016438,2]
[404353932,1770072650240,-1119.06497101,0.00016438,2]
[404353933,1770072650249,-1119.06497101,0.00016438,2]
[404353934,1770072650258,-1119.06497101,0.00016438,2]
[404353935,1770072650267,-1119.06497101,0.00016438,2]
[404353936,1770072650277,-1119.06497101,0.00016438,2]
[404353937,1770072650286,-1119.06497101,0.00016438,2]
[404353938,1770072650295,-1119.06497101,0.00016438,2]
[404353939,1770072650305,-1119.06497101,0.00016438,2]
[404353940,1770072650314,-1119.06497101,0.00016438,2]
[404353941,1770072650323,-1119.06497101,0.00016438,2]
[404353942,1770072650332,-1119.06497101,0.00016438,2]
[404353943,1770072650341,-1119.06497101,0.00016438,2]
[404353944,1770072650350,-1119.06497101,0.00016438,2]
[404353945,1770072650359,-1119.06497101,0.00016438,2]
[404353946,1770072650368,-1119.06497101,0.00016438,2]
[404353947,1770072650378,-1119.06497101,0.00016438,2]
[404353948,1770072650387,-1119.06497101,0.00016438,2]
[404353949,1770072650396,-1119.06497101,0.00016438,2]
[404353950,1770072650405,-1119.06497101,0.00016438,2]
[404353951,1770072650415,-1119.06497101,0.00016438,2]
[404353952,1770072650424,-1119.06497101,0.00016438,2]
[404353953,1770072650433,-1119.06497101,0.00016438,2]
[404353954,1770072650443,-1119.06497101,0.00016438,2]
[404353955,1770072650452,-1119.06497101,0.00016438,2]
[404353956,1770072650461,-1119.06497101,0.00016438,2]
[404353957,1770072650470,-1119.06497101,0.00016438,2]
[404353958,1770072650479,-1119.06497101,0.00016438,2]
[404353959,1770072650488,-1119.06497101,0.00016438,2]
[404353960,1770072650498,-1119.06497101,0.00016438,2]
[404353961,1770072650507,-1119.06497101,0.00016438,2]
[404353962,1770072650515,-1119.06497101,0.00016438,2]
[404353963,1770072650525,-1119.06497101,0.00016438,2]
[404353964,1770072650534,-1119.06497101,0.00016438,2]
[404353965,1770072650543,-1119.06497101,0.00016438,2]
[404353966,1770072650552,-1119.06497101,0.00016438,2]
[404353967,1770072650561,-1119.06497101,0.00016438,2]
[404353968,1770072650571,-1119.06497101,0.00016438,2]
[404353969,1770072650580,-1119.06497101,0.00016438,2]
[404353970,1770072650589,-1119.06497101,0.00016438,2]
[404353971,1770072650598,-1119.06497101,0.00016438,2]
[404353972,1770072650607,-1119.06497101,0.00016438,2]
[404353973,1770072650616,-1119.06497101,0.00016438,2]
[404353974,1770072650624,-1119.06497101,0.00016438,2]
[404353975,1770072650633,-1119.06497101,0.00016438,2]
[404353976,1770072650643,-1119.06497101,0.00016438,2]
[404353977,1770072650652,-1119.06497101,0.00016438,2]
[404353978,1770072650661,-1119.06497101,0.00016438,2]
[404353979,1770072650670,-1119.06497101,0.00016438,2]
[404353980,1770072650679,-1119.06497101,0.00016438,2]
[404353981,1770072650688,-1119.06497101,0.00016438,2]
[404353982,1770072650697,-1119.06497101,0.00016438,2]
[404353983,1770072650706,-1119.06497101,0.00016438,2]
[404353984,1770072650715,-1119.06497101,0.00016438,2]
[404353985,1770072650724,-1119.06497101,0.00016438,2]
[404353986,1770072650733,-1119.06497101,0.00016438,2]
[404353987,1770072650742,-1119.06497101,0.00016438,2]
[404353988,1770072650751,-1119.06497101,0.00016438,2]
[404353989,1770072650760,-2112.77709258,0.00016438,2]
[404353990,1770072650769,-2112.77709258,0.00016438,2]
[404353991,1770072650778,-2112.77709258,0.00016438,2]
[404353992,1770072650787,-2112.77709258,0.00016438,2]
[404353993,1770072650796,-2112.77709258,0.00016438,2]
[404353994,1770072650805,-2112.77709258,0.00016438,2]
[404353995,1770072650814,-2112.77709258,0.00016438,2]
[404353996,1770072650823,-2112.77709258,0.00016438,2]
[404353997,1770072650832,-2112.77709258,0.00016438,2]
[404353998,1770072650841,-2112.77709258,0.00016438,2]
[404353999,1770072650850,-2112.77709258,0.00016438,2]
[404354000,1770072650859,-2112.77709258,0.00016438,2]
[404354001,1770072650867,-2112.77709258,0.00016438,2]
[404354002,1770072650876,-2112.77709258,0.00016438,2]
[404354003,1770072650885,-2112.77709258,0.00016438,2]
[404354004,1770072650895,-2112.77709258,0.00016438,2]
[404354005,1770072650904,-2112.77709258,0.00016438,2]
[404354006,1770072650913,-2112.77709258,0.00016438,2]
[404354007,1770072650923,-2112.77709258,0.00016438,2]
[404354008,1770072650932,-2112.77709258,0.00016438,2]
[404354009,1770072650941,-2112.77709258,0.00016438,2]
[404354010,1770072650951,-2112.77709258,0.00016438,2]
[404354011,1770072650960,-2112.77709258,0.00016438,2]
[404354012,1770072650971,-2112.77709247,0.00016438,2]
[404354013,1770072650981,-151.0,0.00016438,2]
[404354014,1770072650995,-151.0,0.00016438,2]
[404354015,1770072651005,-150.25668222,0.00016438,2]
[404354016,1770072651014,-800.0,0.00016438,2]
[404354017,1770072651023,-151.0,0.00016438,2]
[404354018,1770072651033,-151.0,0.00016438,2]
[404354019,1770072651043,-151.0,0.00016438,2]
[404354020,1770072651055,-333.274447,0.00016438,2]
[404354021,1770072651066,-333.274447,0.00016438,2]
[404354022,1770072651076,-333.274447,0.00016438,2]
[404354023,1770072651087,-333.274447,0.00016438,2]
[404354024,1770072651096,-150.0,0.00016473,2]
[404354025,1770072651105,-1000.0,0.00016515,2]
[404354026,1770072651114,-464.09949899,0.00016568,2]
[404354027,1770072651123,-1191.30611065,0.00016568,2]
[404354028,1770072651134,-871.81162767,0.00016568,2]
[404354029,1770072651143,-1450.35816697,0.00016568,2]
[404354030,1770072651153,-1500.0,0.00016568,2]
[404354031,1770072651163,-1484.36146112,0.00016568,2]
[404354032,1770072651172,-1500.0,0.00016568,2]
[404354033,1770072651182,-1267.89050801,0.00016568,2]
[404354034,1770072651191,-1500.0,0.00016568,2]
[404354035,1770072651201,-432.32446254,0.00016568,2]
[404354036,1770072651210,-500.0,0.00016568,2]
[404354037,1770072651219,-500.0,0.00016568,2]
[404354038,1770072651228,-1136.09023448,0.00016568,2]
[404354039,1770072651237,-1500.0,0.00016568,2]
[404354040,1770072651247,-1500.0,0.00016568,2]
[404354041,1770072651256,-368.88723017,0.00016568,2]
[404354042,1770072651265,-1500.0,0.00016568,2]
[404354043,1770072651275,-1000.0,0.00016568,2]
[404354044,1770072651284,-525.04982288,0.00016568,2]
[404354045,1770072651293,-1502.44429427,0.00016568,2]
[404354046,1770072651302,-385.68955508,0.00016568,2]
[404354047,1770072651311,-1503.56470175,0.00016568,2]
[404354048,1770072651320,-503.30357537,0.00016568,2]
[404354049,1770072651329,-1000.0,0.00016568,2]
[404354050,1770072651338,-1500.0,0.00016568,2]
[404354051,1770072651347,-1408.63714551,0.00016568,2]
[404354052,1770072651356,-1500.0,0.00016568,2]
[404354053,1770072651365,-500.0,0.00016576,2]
[404354054,1770072651375,-200.0,0.00016576,2]
[404354055,1770072651384,-260.4103811,0.00016706,2]
[404354056,1770072651394,-3000.0,0.00016712,2]
[404354057,1770072651404,-500.0,0.00016712,2]
[404354058,1770072651414,-1500.0,0.00016712,2]
[404354059,1770072651424,-500.0,0.00016777,2]
[404354060,1770072651434,-200.0,0.00016983,2]
[404354061,1770072651444,-300.0,0.00017,2]
[404354062,1770072651452,-159.60859955,0.00017002,2]
[404354063,1770072651464,-300.0,0.00017021,2]
[404354064,1770072651475,-343.33,0.00017033,2]
[404354065,1770072651485,-1000.0,0.00017112,2]
[404354066,1770072651495,-1006.52245564,0.00017116,2]
[404354067,1770072651505,-501.43163729,0.00017116,2]
[404354068,1770072651515,-1500.0,0.00017116,2]
[404354069,1770072651526,-365.91722632,0.00017116,2]
[404354070,1770072651535,-2000.0,0.00017116,2]
[404354071,1770072651545,-1500.0,0.00017116,2]
[404354072,1770072651555,-500.0,0.00017124,2]
[404354073,1770072651564,-230.88290778,0.00017124,2]
[404354074,1770072651574,-773.23,0.00017166,2]
[404354075,1770072651583,-270.0455652,0.00017254,2]
[404354076,1770072651591,-352.713549,0.0001726,2]
[404354077,1770072651602,-352.713549,0.0001726,2]
[404354078,1770072651611,-352.713549,0.0001726,2]
[404354079,1770072651623,-352.713549,0.0001726,2]
[404354080,1770072651633,-3500.0,0.0001726,2]
[404354081,1770072651644,-151.0,0.00017418,2]
[404354082,1770072651654,-773.23,0.0001744,2]
[404354083,1770072651664,-380.0,0.0001746,2]
[404354084,1770072651675,-380.0,0.00017467,2]
[404354085,1770072651685,-380.0,0.0001749,2]
[404354086,1770072651695,-380.0,0.00017495,2]
[404354087,1770072651704,-380.0,0.000175,2]
[404354088,1770072651715,-380.0,0.00017501,2]
[404354089,1770072651724,-380.0,0.00017507,2]
[404354090,1770072651733,-380.0,0.0001751,2]
[404354091,1770072651743,-380.0,0.00017519,2]
[404354092,1770072651752,-380.0,0.00017521,2]
[404354093,1770072651762,-386.87667747,0.00017523,2]
[404354094,1770072651771,-380.0,0.0001753,2]
[404354095,1770072651780,-718.43917855,0.00017534,2]
[404354096,1770072651790,-380.0,0.00017553,2]
[404354097,1770072651800,-450.0,0.00017568,2]
[404354098,1770072651811,-380.0,0.00017583,2]
[404354099,1770072651821,-380.0,0.00017584,2]
[404354100,1770072651830,-380.0,0.00017588,2]
[404354101,1770072651840,-380.0,0.00017593,2]
[404354102,1770072651851,-380.0,0.00017603,2]
[404354103,1770072651859,-380.0,0.00017625,2]
[404354104,1770072651868,-380.0,0.00017632,2]
[404354105,1770072651877,-380.0,0.00017643,2]
[404354106,1770072651887,-500.0,0.00017644,2]
[404354107,1770072651896,-380.0,0.0001765,2]
[404354108,1770072651904,-380.0,0.00017654,2]
[404354109,1770072651914,-2500.0,0.00017664,2]
[404354110,1770072651922,-500.0,0.00017672,2]
[404354111,1770072651931,-380.0,0.00017684,2]
[404354112,1770072651941,-1000.0,0.00017709,2]
[404354113,1770072651950,-773.23,0.00017714,2]
[404354114,1770072651961,-380.0,0.00017723,2]
[404354115,1770072651970,-380.0,0.00017731,2]
[404354116,1770072651979,-380.0,0.00017739,2]
[404354117,1770072651990,-380.0,0.00017739,2]
[404354118,1770072651999,-380.0,0.00017759,2]
[404354119,1770072652009,-380.0,0.00017768,2]
[404354120,1770072652018,-380.0,0.00017769,2]
[404354121,1770072652028,-380.0,0.0001777,2]
[404354122,1770072652039,-380.0,0.00017772,2]
[404354123,1770072652048,-280.03725112,0.00017802,2]
[404354124,1770072652059,-2850.93477356,0.00017808,2]
[404354125,1770072652068,-380.0,0.0001781,2]
[404354126,1770072652077,-432.4730334,0.0001782,2]
[404354127,1770072652086,-380.0,0.00017821,2]
[404354128,1770072652095,-380.0,0.00017834,2]
[404354129,1770072652105,-380.0,0.00017849,2]
[404354130,1770072652114,-159.60859955,0.00017852,2]
[404354131,1770072652123,-380.0,0.00017855,2]
[404354132,1770072652132,-380.0,0.00017869,2]
[404354133,1770072652141,-380.0,0.00017873,2]
[404354134,1770072652151,-380.0,0.00017893,2]
[404354135,1770072652160,-165.62377034,0.00017893,2]
[404354136,1770072652169,-380.0,0.00017894,2]
[404354137,1770072652179,-500.0,0.000179,2]
[404354138,1770072652188,-20453.46079029,0.000179,3]
[404354139,1770072652198,-380.0,0.000179,2]
[404354140,1770072652208,-864.56091313,0.000179,2]
[404354141,1770072652217,-515.85083038,0.000179,2]
[404354142,1770072652227,-2245.23080824,0.000179,2]
[404354143,1770072652238,-19990.92713855,0.000179,2]
[404354144,1770072652248,-380.0,0.00017914,2]
[404354145,1770072652258,-380.0,0.00017917,2]
[404354146,1770072652269,-380.0,0.0001792,2]
[404354147,1770072652280,-380.0,0.00017927,2]
[404354148,1770072652290,-380.0,0.00017931,2]
[404354149,1770072652301,-380.0,0.00017933,2]
[404354150,1770072652311,-380.0,0.00017943,2]
[404354151,1770072652321,-305.64052574,0.00017948,2]
[404354152,1770072652332,-380.0,0.00017948,2]
[404354153,1770072652343,-380.0,0.00017958,2]
[404354154,1770072652353,-380.0,0.0001796,2]
[404354155,1770072652364,-380.0,0.00017969,2]
[404354156,1770072652375,-3162.0,0.00017985,2]
[404354157,1770072652385,-12649.0,0.00017985,2]
[404354158,1770072652395,-868.9,0.00017988,2]
[404354159,1770072652406,-915.85779872,0.0001799,2]
[404354160,1770072652416,-380.0,0.00017992,2]
[404354161,1770072652426,-151.0,0.00017997,2]
[404354162,1770072652437,-150.0,0.00017999,2]
[404354163,1770072652447,-150.0,0.00017999,2]
[404354164,1770072652457,-150.0,0.00017999,2]
[404354165,1770072652468,-150.0,0.00017999,2]
[404354166,1770072652478,-150.0,0.00017999,2]
[404354167,1770072652488,-150.0,0.00017999,2]
[404354168,1770072652498,-237.36446922,0.00017999,2]
[404354169,1770072652508,-300.0,0.00017999,2]
[404354170,1770072652518,-300.0,0.00017999,2]
[404354171,1770072652527,-666.0,0.00017999,2]
[404354172,1770072652537,-300.0,0.00017999,2]
[404354173,1770072652549,-300.0,0.00017999,2]
[404354174,1770072652560,-666.0,0.00017999,2]
[404354175,1770072652571,-300.0,0.00017999,2]
[404354176,1770072652581,-300.0,0.00017999,2]
[404354177,1770072652592,-666.0,0.00017999,2]
[404354178,1770072652602,-300.0,0.00017999,2]
[404354179,1770072652611,-300.0,0.00017999,2]
[404354180,1770072652622,-7077863.46055267,0.00018,2]
[404354181,1770072653113,5352.415326,9.184e-05,2]
[404354182,1770072653291,-849.23220107,0.00018,2]
[404354183,1770072653308,-254.78786099,0.00018,2]
[404354184,1770072653319,-634.85948991,0.00018,2]
[404354185,1770072653331,-916.60274998,0.00018,2]
[404354186,1770072653343,-4274190.53785229,0.00018,2]
[404354187,1770072653587,-5100.93599827,0.00011116,2]
[404354188,1770072653600,-1038.39988,0.00011116,2]
[404354189,1770072653619,-800.197906,0.00011116,2]
[404354190,1770072653778,-16512.63184029,0.00011116,2]
[404354191,1770072653790,-11885.74731591,0.00011116,2]
[404354192,1770072653801,-445.90494493,0.00011116,2]
[404354193,1770072653813,-40714.39303076,0.00011116,2]
[404354194,1770072653823,-1102.0,0.00013684,2]
[404354195,1770072653832,-252377.12594532,0.00018,2]
[404354196,1770072653843,-1156.37737639,0.00018,2]
[404354197,1770072653932,-516.78954915,0.00011613,2]
[404354198,1770072653943,-3211.33953344,0.00011613,2]
[404354199,1770072654173,-5821.91098412,0.00011613,2]
[404354200,1770072654186,-22192.45776529,0.00011613,2]
[404354201,1770072654197,-275.99999997,0.00011613,2]
[404354202,1770072661488,10000.01,9.237e-05,2]
[404354203,1770072661520,10000.01,9.237e-05,2]
[404354204,1770072661550,10000.01,9.237e-05,2]
[404354205,1770072661579,10000.01,9.237e-05,2]
[404354206,1770072661606,10000.01,9.237e-05,2]
[404354207,1770072661633,10000.01,9.237e-05,2]
[404354208,1770072661660,10000.01,9.237e-05,2]
[404354218,1770072669011,-4647.594674,9.237e-05,2]
[404354219,1770072669136,-10000.01,9.237e-05,2]
[404354221,1770072669295,-10000.01,9.237e-05,2]
[404354222,1770072669466,-10000.01,9.237e-05,2]
[404354224,1770072669618,-237.10759309,9.229e-05,2]
[404354225,1770072669627,-9762.90240691,9.237e-05,2]
[404354226,1770072669817,-500.0,9.229e-05,2]
[404354227,1770072669868,-9000.01,9.237e-05,2]
[404354228,1770072669935,-10000.01,9.237e-05,2]
[404354229,1770072670126,-10000.01,9.237e-05,2]
[404354230,1770072671932,-10000.01,9.237e-05,2]
[404354231,1770072672176,-10000.01,9.237e-05,2]
[404354232,1770072674869,-2500.0,9.13e-05,2]
[404354233,1770072674924,-5000.01,9.237e-05,2]
[404354234,1770072675029,-10000.01,9.237e-05,2]
[404354235,1770072675199,-10000.01,9.237e-05,2]
[404354236,1770072675350,-10000.01,9.237e-05,2]
[404354237,1770072675486,-10000.01,9.237e-05,2]
[404354238,1770072675632,-10000.01,9.237e-05,2]
[404354239,1770072675921,-10000.01,9.237e-05,2]
[404354240,1770072676087,-10000.01,9.237e-05,2]
[404354241,1770072677883,-10000.01,9.237e-05,2]
[404354242,1770072678025,-10000.01,9.237e-05,2]
[404354249,1770072681554,-10000.01,9.237e-05,2]
[404354250,1770072681979,-10000.01,9.237e-05,2]
[404354251,1770072682218,-10000.01,9.237e-05,2]
[404354252,1770072682447,-10000.01,9.237e-05,2]
[404354253,1770072682585,-10000.01,9.237e-05,2]
[404354254,1770072682723,-10000.01,9.237e-05,2]
[404354257,1770072683024,-10000.01,9.237e-05,2]
[404354260,1770072683169,-10000.01,9.237e-05,2]
[404354261,1770072687037,-10000.01,9.237e-05,2]
[404354262,1770072687207,-10000.01,9.237e-05,2]
[404354263,1770072690155,-10000.01,9.237e-05,2]
[404354264,1770072690417,-10000.01,9.237e-05,2]
[404354265,1770072690571,-10000.01,9.237e-05,2]
[404354266,1770072690695,-10000.01,9.237e-05,2]
[404354267,1770072690819,-10000.01,9.237e-05,2]
[404354268,1770072690966,-10000.01,9.237e-05,2]
[404354269,1770072691086,-10000.01,9.237e-05,2]
[404354270,1770072693089,-10000.01,9.237e-05,2]
[404354271,1770072693257,-10000.01,9.237e-05,2]
[404354272,1770072693431,-10000.01,9.237e-05,2]
[404354273,1770072699893,-10000.01,9.237e-05,2]
[404354274,1770072700297,-10000.01,9.237e-05,2]
[404354275,1770072700500,-10000.01,9.237e-05,2]
[404354276,1770072700666,-10000.01,9.237e-05,2]
[404354277,1770072700854,-10000.01,9.237e-05,2]
[404354278,1770072701013,-10000.01,9.237e-05,2]
[404354279,1770072702232,-10000.01,9.237e-05,2]
[404354280,1770072702346,-10000.01,9.237e-05,2]
[404354281,1770072702502,-10000.01,9.237e-05,2]
[404354282,1770072705295,-10000.01,9.237e-05,2]
[404354283,1770072705422,-10000.01,9.237e-05,2]
[404354284,1770072705552,-10000.01,9.237e-05,2]
[404354285,1770072705686,-10000.01,9.13e-05,2]
[404354286,1770072705881,-10000.01,9.13e-05,2]
[404354287,1770072706019,-10000.01,9.13e-05,2]
[404354288,1770072706171,-10000.01,9.13e-05,2]
[404354302,1770072739189,-300.0,9.129e-05,2]
[404354303,1770072754497,-10000.01,9.13e-05,2]
[404354304,1770072754694,-10000.01,9.13e-05,2]
[404354305,1770072754928,-10000.01,9.13e-05,2]
[404354306,1770072755155,-10000.01,9.13e-05,2]
[404354307,1770072755336,-10000.01,9.13e-05,2]
[404354308,1770072755482,-10000.01,9.13e-05,2]
[404354309,1770072755618,-10000.01,9.13e-05,2]
[404354310,1770072755757,-10000.01,9.13e-05,2]
[404354311,1770072756198,-10000.01,9.13e-05,2]
[404354312,1770072756224,-10000.01,9.13e-05,2]
[404354313,1770072763216,-10000.01,9.13e-05,2]
[404354314,1770072763415,-10000.01,9.13e-05,2]
[404354315,1770072763551,-10000.01,9.13e-05,2]
[404354316,1770072763735,-10000.01,9.13e-05,2]
[404354317,1770072763867,-10000.01,9.13e-05,2]
[404354318,1770072763986,-10000.01,9.13e-05,2]
[404354319,1770072764131,-10000.01,9.13e-05,2]
[404354320,1770072764294,-10000.01,9.13e-05,2]
[404354321,1770072764408,-10000.01,9.13e-05,2]
[404354322,1770072764676,-10000.01,9.13e-05,2]
[404354323,1770072769243,-10000.01,9.13e-05,2]
[404354324,1770072769386,-10000.01,9.13e-05,2]
[404354325,1770072769548,-10000.01,9.13e-05,2]
[404354326,1770072769711,-10000.01,9.13e-05,2]
[404354327,1770072769835,-10000.01,9.13e-05,2]
[404354328,1770072769957,-10000.01,9.13e-05,2]
[404354329,1770072770100,-10000.01,9.13e-05,2]
[404354330,1770072770236,-10000.01,9.13e-05,2]
[404354331,1770072770380,-10000.01,9.13e-05,2]
[404354332,1770072770527,-10000.01,9.13e-05,2]
[404354333,1770072775453,-920.76651104,9.13e-05,2]
[404354334,1770072775556,-8158.47697792,9.13e-05,2]
[404354335,1770072775613,-10000.01,9.13e-05,2]
[404354336,1770072775740,-10000.01,9.13e-05,2]
[404354337,1770072775869,-10000.01,9.13e-05,2]
[404354338,1770072776009,-10000.01,9.13e-05,2]
[404354339,1770072776175,-10000.01,9.13e-05,2]
[404354340,1770072776322,-10000.01,9.13e-05,2]
[404354341,1770072776725,-10000.01,9.13e-05,2]
[404354342,1770072777039,-10000.01,9.13e-05,2]
[404354343,1770072777066,-10000.01,9.13e-05,2]
[404354344,1770072781537,-300.0,9.129e-05,2]
[404354345,1770072781589,-9400.01,9.13e-05,2]
[404354346,1770072781712,-3872.21467792,9.13e-05,2]
[404354347,1770072781743,-2255.58064416,9.13e-05,2]
[404354348,1770072781839,-2616.6156,9.13e-05,2]
[404354349,1770072781875,-500.0,9.13e-05,2]
[404354350,1770072781951,-3766.7788,9.13e-05,2]
[404354351,1770072782036,-10000.01,9.13e-05,2]
[404354352,1770072782190,-10000.01,9.13e-05,2]
[404354353,1770072782334,-478.5583,9.13e-05,2]
[404354354,1770072782365,-9042.8934,9.13e-05,2]
[404354355,1770072782499,-10000.01,9.13e-05,2]
[404354356,1770072782663,-10000.01,9.13e-05,2]
[404354357,1770072782835,-10000.01,9.13e-05,2]
[404354358,1770072782970,-10000.01,9.13e-05,2]
[404354364,1770072784676,-429.39178028,9.13e-05,2]
[404354384,1770072799784,-10000.01,9.13e-05,2]
[404354385,1770072799924,-10000.01,9.13e-05,2]
[404354386,1770072800053,-10000.01,9.13e-05,2]
[404354387,1770072800199,-10000.01,9.13e-05,2]
[404354388,1770072800553,-10000.01,9.13e-05,2]
[404354389,1770072800684,-10000.01,9.13e-05,2]
[404354390,1770072800888,-10000.01,9.13e-05,2]
[404354391,1770072800983,-10000.01,9.13e-05,2]
[404354392,1770072801118,-10000.01,9.13e-05,2]
[404354393,1770072801251,-10000.01,9.13e-05,2]
[404354396,1770072805817,-10000.01,9.13e-05,2]
[404354397,1770072805939,-10000.01,9.13e-05,2]
[404354398,1770072806249,-10000.01,9.13e-05,2]
[404354399,1770072806403,-10000.01,9.13e-05,2]
[404354400,1770072806532,-10000.01,9.13e-05,2]
[404354401,1770072806694,-10000.01,9.13e-05,2]
[404354402,1770072806835,-10000.01,9.13e-05,2]
[404354403,1770072807080,-10000.01,9.13e-05,2]
[404354404,1770072807290,-10000.01,9.13e-05,2]
[404354405,1770072807429,-10000.01,9.13e-05,2]
[404354406,1770072827680,-10000.01,9.13e-05,2]
[404354407,1770072828031,-10000.01,9.13e-05,2]
[404354408,1770072828180,-10000.01,9.13e-05,2]
[404354409,1770072833277,-10000.01,9.13e-05,2]
[404354410,1770072833418,-10000.01,9.13e-05,2]
[404354411,1770072833546,-10000.01,9.13e-05,2]
[404354412,1770072836437,-2500.0,9.03e-05,2]
[404354419,1770072850218,249.92812743,0.00012016,5]
[404354420,1770072866610,10000.01,9.03e-05,2]
[404354421,1770072866642,10000.01,9.03e-05,2]
[404354422,1770072866670,10000.01,9.03e-05,2]
[404354423,1770072866698,10000.01,9.03e-05,2]
[404354424,1770072866727,10000.01,9.03e-05,2]
[404354425,1770072866755,10000.01,9.03e-05,2]
[404354426,1770072866784,10000.01,9.03e-05,2]
[404354427,1770072866813,10000.01,9.03e-05,2]
[404354428,1770072866842,10000.01,9.03e-05,2]
[404354429,1770072866872,10000.01,9.03e-05,2]
[404354430,1770072875843,-10000.01,9.03e-05,2]
[404354431,1770072875980,-10000.01,9.03e-05,2]
[404354432,1770072876134,-10000.01,9.03e-05,2]
[404354433,1770072876305,-10000.01,9.03e-05,2]
[404354434,1770072876480,-10000.01,9.03e-05,2]
[404354435,1770072876647,-10000.01,9.03e-05,2]
[404354436,1770072876825,-10000.01,9.03e-05,2]
[404354437,1770072877014,-10000.01,9.03e-05,2]
[404354438,1770072877163,-10000.01,9.03e-05,2]
[404354439,1770072877293,-10000.01,9.03e-05,2]
[404354452,1770072965158,166.66,8.928e-05,2]
[404354453,1770073002561,1469.51,8.491e-05,2]
[404354460,1770073062686,4599.04,8.462e-05,2]
[404354461,1770073077787,3764.8,8.982e-05,2]
[404354462,1770073077818,1378.24778,8.982e-05,2]
[404354469,1770073110755,443.8,8.361e-05,2]
[404354470,1770073110968,443.8,8.826e-05,2]
[404354486,1770073217096,-1200.0,9.028e-05,2]
[404354487,1770073217125,-300.0,9.028e-05,2]
[404354488,1770073217154,-300.0,9.028e-05,2]
[404354489,1770073217188,-150.0,9.028e-05,2]
[404354490,1770073217218,-500.0,9.028e-05,2]
[404354491,1770073217324,-100.01,9.028e-05,2]
[404354492,1770073223000,-247.22037837,9.028e-05,2]
[404354493,1770073223030,-300.0,9.028e-05,2]
[404354494,1770073223060,-225.0,9.028e-05,2]
[404354495,1770073228724,237.2858,8.93e-05,2]
[404354496,1770073231581,200.0,8.34e-05,2]
[404354497,1770073261543,300.0,9.028e-05,2]
[404354507,1770073266873,4700.01,8.929e-05,2]
[404354508,1770073266905,5000.01,8.929e-05,2]
[404354509,1770073266935,5000.01,8.929e-05,2]
[404354510,1770073266965,5000.01,8.929e-05,2]
[404354511,1770073266995,5000.01,8.929e-05,2]
[404354512,1770073267026,5000.01,8.929e-05,2]
[404354514,1770073267057,5000.01,8.929e-05,2]
[404354516,1770073267088,5000.01,8.929e-05,2]
[404354517,1770073267120,5000.01,8.929e-05,2]
[404354518,1770073267156,5000.01,8.929e-05,2]
[404354520,1770073267211,10000.01,8.929e-05,2]
[404354522,1770073267249,10000.01,8.929e-05,2]
[404354523,1770073267288,10000.01,8.929e-05,2]
[404354524,1770073267327,10000.01,8.929e-05,2]
[404354525,1770073267372,10000.01,8.929e-05,2]
[404354526,1770073267415,10000.01,8.929e-05,2]
[404354527,1770073267455,10000.01,8.929e-05,2]
[404354528,1770073267494,10000.01,8.929e-05,2]
[404354529,1770073267532,10000.01,8.929e-05,2]
[404354530,1770073267571,10000.01,8.929e-05,2]
[404354533,1770073293408,5000.01,8.75e-05,2]
[404354534,1770073293431,2491.867,8.75e-05,2]
[404354535,1770073293536,628.889,8.75e-05,2]
[404354536,1770073306088,500.0,8.297e-05,2]
[404354537,1770073313793,151.13,8.264e-05,2]
[404354538,1770073314008,151.13,8.323e-05,2]
[404354539,1770073314252,151.13,8.382e-05,2]
[404354540,1770073314480,151.13,8.441e-05,2]
[404354541,1770073314735,151.13,8.5e-05,2]
[404354542,1770073314960,151.13,8.559e-05,2]
[404354543,1770073315170,151.13,8.618e-05,2]
[404354544,1770073315410,151.13,8.677e-05,2]
[404354545,1770073321838,170.214,8.928e-05,2]
[404354546,1770073321862,129.786,8.928e-05,2]
[404354552,1770073333267,151.0,8.926e-05,2]
[404354553,1770073346989,150.0,8.902e-05,2]